bitfinex/quotes_SOLUSD_20251013
["timestamp","ask_amount","ask_price","bid_price","bid_amount"]
[1760363191832,0.1,195.01,194.97,8.44546441]
[1760363192348,0.1,195.01,195.0,8.44546441]
[1760363192728,0.1,195.01,194.96,10.87647521]
[1760363192928,0.72,195.0,194.92,10.87647521]
[1760363193132,0.72,194.99,194.93,8.44546441]
[1760363193347,0.72,194.99,194.94,5.12978352]
[1760363193549,0.72,194.99,194.94,13.57524793]
[1760363193854,0.72,194.98,194.95,8.44546441]
[1760363194053,0.1,195.01,194.97,8.44546441]
[1760363194267,0.82,195.01,194.97,8.44546441]
[1760363194573,0.82,195.01,194.94,17.95424232]
[1760363194574,8.44546441,194.99,194.94,5.12978352]
[1760363194759,0.72,194.98,194.94,13.57524793]
[1760363194947,0.17891473,195.0,194.95,8.44546441]
[1760363195264,0.72,195.11,195.01,10.87647521]
[1760363195468,8.44546441,195.15,195.04,20.8]
[1760363195685,0.72,195.12,195.04,29.24546441]
[1760363195846,8.44546441,195.06,195.0,5.12820512]
[1760363196046,8.44546441,195.04,194.98,5.12860447]
[1760363196241,8.44546441,195.02,194.82,45.66404667]
[1760363196474,8.44546441,194.97,194.9,8.44546441]
[1760363196668,8.44546441,194.95,194.83,17.9643792]
[1760363196870,8.44546441,194.9,194.83,5.13267977]
[1760363197176,0.72,194.89,194.7,30.69999999]
[1760363197345,8.44546441,194.85,194.78,8.44546441]
[1760363197549,0.89891473,194.84,194.76,8.44546441]
[1760363197859,0.17891473,194.87,194.82,8.44546441]
[1760363198165,0.72,194.86,194.82,8.44546441]
[1760363198369,0.72,194.85,194.81,8.44546441]
[1760363198568,8.44546441,194.9,194.83,8.44546441]
[1760363198755,9.16546441,194.88,194.81,8.44546441]
[1760363198959,0.72,194.88,194.83,8.44546441]
[1760363199154,0.10855927,194.83,194.82,13.57840763]
[1760363199560,0.10404721,194.85,194.82,5.13294322]
[1760363199758,0.72,194.83,194.78,8.44546441]
[1760363199946,0.72,194.82,194.77,8.44546441]
[1760363200148,0.72,194.82,194.69,17.97729724]
[1760363200149,0.72,194.81,194.75,8.44546441]
[1760363200361,10.87891473,194.84,194.78,8.44546441]
[1760363200571,8.44546441,194.81,194.69,17.97729724]
[1760363200777,0.72,194.8,194.77,8.44546441]
[1760363200962,0.10404721,194.85,194.79,8.44546441]
[1760363201264,0.10404721,194.85,194.75,10.87647521]
[1760363201265,8.44546441,194.81,194.75,8.44546441]
[1760363201451,0.89891473,194.8,194.75,8.44546441]
[1760363201657,0.89891473,194.8,194.7,10.87647521]
[1760363201658,8.44546441,194.77,194.7,8.44546441]
[1760363201854,0.72,194.76,194.68,5.13663447]
[1760363202074,0.72,194.76,194.71,8.44546441]
[1760363202255,0.17891473,194.75,194.63,5.13795406]
[1760363202463,0.72,194.76,194.72,8.44546441]
[1760363202776,0.86891473,194.75,194.7,8.44546441]
[1760363202973,0.86891473,194.74,194.71,8.44546441]
[1760363203160,0.86891473,194.79,194.73,8.44546441]
[1760363203357,0.86891473,194.79,194.68,10.87647521]
[1760363203358,0.69,194.78,194.74,8.44546441]
[1760363203558,0.69,194.77,194.74,8.44546441]
[1760363203760,0.69,194.76,194.73,8.44546441]
[1760363203970,0.17891473,194.79,194.74,8.44546441]
[1760363204158,0.69,194.79,194.73,10.87647521]
[1760363204351,50.10404721,194.85,194.78,8.44546441]
[1760363204554,50.10404721,194.85,194.84,8.44546441]
[1760363204750,50.10404721,194.85,194.81,20.8]
[1760363205061,50.10404721,194.85,194.84,40.12193962]
[1760363205395,50.10404721,194.85,194.84,34.37788075]
[1760363205874,21.89429885,194.85,194.84,34.37788075]
[1760363206075,21.89429885,194.85,194.84,24.45435596]
[1760363206470,21.89429885,194.85,194.84,13.57788075]
[1760363206875,21.89429885,194.85,194.84,5.13241634]
[1760363207077,21.89429885,194.85,194.84,8.44546441]
[1760363207376,46.89194198,194.85,194.73,10.87647521]
[1760363207680,8.44546441,194.82,194.75,8.44546441]
[1760363207881,9.16546441,194.82,194.75,8.44546441]
[1760363208090,9.34437914,194.81,194.63,43.67260955]
[1760363208383,9.34437914,194.81,194.66,20.8]
[1760363208384,10.7,194.8,194.66,20.8]
[1760363208573,10.7,194.8,194.76,8.44546441]
[1760363208879,21.89429885,194.85,194.79,8.44546441]
[1760363209060,21.89429885,194.85,194.76,20.8]
[1760363209263,0.89891473,194.84,194.78,8.44546441]
[1760363209579,0.72,194.84,194.81,8.44546441]
[1760363209785,0.72,194.84,194.77,17.96991322]
[1760363209786,0.72,194.83,194.77,8.44546441]
[1760363209962,10.87891473,194.82,194.77,8.44546441]
[1760363210169,8.44546441,194.79,194.72,8.44546441]
[1760363210492,8.44546441,194.79,194.55,25.98044132]
[1760363210493,8.44546441,194.75,194.67,5.13688718]
[1760363210670,11.42,194.74,194.71,8.44546441]
[1760363210995,0.72,194.73,194.68,8.44546441]
[1760363211292,9.34437914,194.72,194.63,5.13795406]
[1760363211471,0.89891473,194.72,194.66,8.44546441]
[1760363211667,19.14546441,194.71,194.63,5.13795406]
[1760363211868,0.89891473,194.7,194.66,8.44546441]
[1760363212185,0.17891473,194.74,194.64,11.39024421]
[1760363212386,0.72,194.73,194.67,8.44546441]
[1760363212581,0.89891473,194.73,194.68,8.44546441]
[1760363212790,0.89891473,194.73,194.67,8.44546441]
[1760363212995,0.89891473,194.73,194.63,17.98283922]
[1760363213288,13.58130745,194.71,194.64,8.44546441]
[1760363213466,11.59891473,194.7,194.63,8.44546441]
[1760363213665,8.44546441,194.67,194.62,0.2]
[1760363213891,0.17891473,194.69,194.62,0.2]
[1760363214099,0.17891473,194.73,194.67,8.44546441]
[1760363214278,10.7,194.72,194.71,8.44546441]
[1760363214476,5.85320671,194.81,194.71,8.44546441]
[1760363214668,5.85320671,194.81,194.77,8.44546441]
[1760363214669,10.87891473,194.8,194.77,8.44546441]
[1760363214864,0.89891473,194.79,194.69,0.51308307]
[1760363215096,0.89891473,194.79,194.73,8.44546441]
[1760363215396,0.89891473,194.79,194.74,5.13505186]
[1760363215565,0.72,194.79,194.76,8.44546441]
[1760363215770,0.72,194.79,194.75,8.44546441]
[1760363215982,0.89891473,194.78,194.75,8.44546441]
[1760363216180,0.17891473,194.79,194.75,8.44546441]
[1760363216390,0.72,194.79,194.75,8.44546441]
[1760363216590,10.87891473,194.8,194.74,8.44546441]
[1760363216591,0.89891473,194.78,194.74,8.44546441]
[1760363216793,0.72,194.78,194.74,8.44546441]
[1760363216991,0.17891473,194.81,194.77,8.44546441]
[1760363217165,10.7,194.82,194.8,8.44546441]
[1760363217582,0.72,194.81,194.74,5.13505186]
[1760363217792,0.72,194.81,194.75,8.44546441]
[1760363217793,0.89891473,194.8,194.75,8.44546441]
[1760363218092,0.17891473,194.81,194.76,8.44546441]
[1760363218288,0.72,194.8,194.76,8.44546441]
[1760363218590,0.72,194.79,194.76,8.44546441]
[1760363218796,0.17891473,194.81,194.76,8.44546441]
[1760363218995,0.72,194.79,194.74,8.44546441]
[1760363219293,8.54601362,194.77,194.71,8.44546441]
[1760363219472,9.34437914,194.76,194.69,8.44546441]
[1760363219797,8.44546441,194.75,194.68,8.44546441]
[1760363219970,8.44546441,194.72,194.63,5.13795406]
[1760363220170,0.17891473,194.71,194.67,8.44546441]
[1760363220379,8.44546441,194.68,194.62,8.64546441]
[1760363220709,11.42,194.7,194.55,5.14006682]
[1760363220710,8.44546441,194.63,194.55,5.14006682]
[1760363220872,8.62437914,194.66,194.59,8.44546441]
[1760363221080,10.87891473,194.66,194.62,8.44546441]
[1760363221278,10.87891473,194.66,194.59,0.51390102]
[1760363221279,0.72,194.73,194.65,8.44546441]
[1760363221571,0.17891473,194.72,194.67,5.13689834]
[1760363221792,0.17891473,194.73,194.68,8.44546441]
[1760363221971,0.72,194.71,194.68,8.44546441]
[1760363222174,0.17891473,194.72,194.65,0.51374261]
[1760363222378,0.10054921,194.77,194.71,8.44546441]
[1760363222580,20.04437914,194.76,194.69,8.44546441]
[1760363222797,0.17891473,194.76,194.72,8.44546441]
[1760363223122,0.72,194.76,194.68,0.51353154]
[1760363223276,8.44546441,194.73,194.67,20.8]
[1760363223478,0.17891473,194.72,194.66,5.13716223]
[1760363223700,0.17891473,194.74,194.69,8.44546441]
[1760363223900,0.10054921,194.77,194.73,8.44546441]
[1760363224094,0.72,194.76,194.7,21.31328368]
[1760363224311,0.72,194.76,194.66,5.13716223]
[1760363224312,8.44546441,194.73,194.66,5.13716223]
[1760363224503,0.89891473,194.72,194.64,8.44546441]
[1760363224702,19.14546441,194.71,194.64,8.44546441]
[1760363224903,8.62437914,194.7,194.61,17.98468732]
[1760363225106,8.44546441,194.68,194.6,0.51387461]
[1760363225310,21.69891473,194.7,194.5,0.2]
[1760363225311,8.44546441,194.65,194.5,0.2]
[1760363225513,13.58349052,194.63,194.56,8.44546441]
[1760363225801,8.44546441,194.6,194.54,8.64546441]
[1760363226004,10.87891473,194.59,194.54,8.64546441]
[1760363226228,0.72,194.58,194.54,0.2]
[1760363226408,8.44546441,194.56,194.54,0.2]
[1760363226722,20.8,194.52,194.45,8.44546441]
[1760363226929,0.17891473,194.51,194.46,8.44546441]
[1760363227299,0.17891473,194.51,194.42,0.2]
[1760363227300,11.42,194.5,194.42,0.2]
[1760363227504,8.44546441,194.48,194.42,13.7889172]
[1760363227703,0.17891473,194.47,194.42,13.7889172]
[1760363227935,10.7,194.46,194.43,8.44546441]
[1760363228229,10.87891473,194.5,194.45,8.44546441]
[1760363228416,21.69891473,194.55,194.48,8.44546441]
[1760363228723,8.44546441,194.51,194.42,5.34349063]
[1760363228923,20.8,194.47,194.42,0.2]
[1760363229222,10.7,194.46,194.44,8.44546441]
[1760363229411,0.17891473,194.45,194.42,0.2]
[1760363229616,10.87891473,194.46,194.43,8.44546441]
[1760363229813,10.87891473,194.46,194.42,5.34349816]
[1760363229814,10.87891473,194.46,194.42,13.78896257]
[1760363230022,8.44546441,194.43,194.42,0.2]
[1760363230204,10.7,194.43,194.42,0.2]
[1760363230403,0.17891473,194.46,194.42,0.2]
[1760363230604,10.7,194.45,194.42,8.64546441]
[1760363230907,10.7,194.45,194.42,13.78874707]
[1760363231114,20.8,194.48,194.44,8.44546441]
[1760363231311,10.7,194.45,194.44,8.44546441]
[1760363231513,10.87891473,194.47,194.45,5.1427102]
[1760363231805,0.89891473,194.46,194.43,5.14300002]
[1760363232000,8.44546441,194.44,194.42,0.2]
[1760363232226,20.04437914,194.43,194.42,0.2]
[1760363232425,20.04437914,194.43,194.33,0.71458858]
[1760363232426,20.8,194.4,194.33,0.2]
[1760363232608,0.17891473,194.39,194.35,8.44546441]
[1760363232805,20.8,194.35,194.33,0.2]
[1760363233008,11.56891473,194.34,194.21,0.51490654]
[1760363233230,8.44546441,194.28,194.22,8.44546441]
[1760363233422,0.17891473,194.32,194.21,0.51490654]
[1760363233625,31.5,194.31,194.25,8.44546441]
[1760363233803,0.17891473,194.3,194.24,8.44546441]
[1760363234010,10.7,194.29,194.25,8.44546441]
[1760363234541,10.7,194.29,194.22,5.14880032]
[1760363234542,0.86891473,194.28,194.22,5.14880032]
[1760363234828,0.17891473,194.28,194.24,8.44546441]
[1760363235199,0.17891473,194.28,194.22,5.14880032]
[1760363235200,0.69,194.27,194.22,5.14880032]
[1760363235427,0.17891473,194.26,194.2,18.02226106]
[1760363235622,10.7,194.25,194.2,5.14933058]
[1760363235928,0.17891473,194.24,194.14,0.66]
[1760363236097,10.7,194.23,194.14,1.17501261]
[1760363236304,10.7,194.23,194.2,8.44546441]
[1760363236502,10.7,194.3,194.22,8.44546441]
[1760363236741,8.44546441,194.27,194.13,21.31482698]
[1760363236916,8.44546441,194.23,194.14,10.87647521]
[1760363237108,0.17891473,194.33,194.25,20.8]
[1760363237309,8.44546441,194.37,194.3,8.44546441]
[1760363237515,10.87891473,194.36,194.32,8.44546441]
[1760363237716,10.7,194.35,194.32,8.44546441]
[1760363237920,0.86891473,194.34,194.27,5.14747516]
[1760363238108,0.86891473,194.34,194.29,8.44546441]
[1760363238327,8.44546441,194.31,194.25,5.14778844]
[1760363238518,8.44546441,194.29,194.2,5.14933058]
[1760363238721,8.44546441,194.25,194.18,5.14968327]
[1760363238921,8.44546441,194.23,194.17,8.44546441]
[1760363239111,10.87891473,194.22,194.18,8.44546441]
[1760363239334,0.1106335,194.19,194.15,8.44546441]
[1760363239548,11.39,194.18,194.14,5.15092201]
[1760363239752,10.87891473,194.18,194.17,8.9773755]
[1760363239925,10.7,194.18,194.17,8.9773755]
[1760363240120,10.7,194.18,194.15,8.9773755]
[1760363240325,0.28954823,194.19,194.05,1.17450785]
[1760363240326,9.84629023,194.17,194.05,1.17450785]
[1760363240520,10.7,194.16,194.06,5.81304544]
[1760363240843,0.1106335,194.19,194.15,8.9773755]
[1760363241030,0.1106335,194.19,194.18,8.9773755]
[1760363241449,0.1106335,194.19,194.18,8.96275367]
[1760363241753,0.1106335,194.19,194.13,0.51429581]
[1760363241931,0.28954823,194.19,194.18,8.96275367]
[1760363242123,0.1106335,194.19,194.18,8.96275367]
[1760363242324,1e-08,194.19,194.18,8.96275367]
[1760363242549,1e-08,194.21,194.2,10.87647521]
[1760363242742,0.10310417,194.26,194.25,20.8]
[1760363243053,0.17891473,194.36,194.25,40.63922888]
[1760363243260,0.17891473,194.36,194.23,0.51485351]
[1760363243261,0.69,194.37,194.34,8.96275367]
[1760363243445,0.17891473,194.36,194.29,20.8]
[1760363243753,0.17891473,194.38,194.32,18.01152736]
[1760363243960,0.17891473,194.39,194.37,8.96026643]
[1760363244246,10.7,194.41,194.37,8.96026643]
[1760363244447,0.86891473,194.4,194.35,8.96026643]
[1760363244652,10.7,194.39,194.35,8.96026643]
[1760363244824,0.17891473,194.4,194.38,8.96026643]
[1760363245029,8.96026643,194.44,194.32,18.52589632]
[1760363245030,10.7,194.44,194.39,8.96026643]
[1760363245225,11.56891473,194.43,194.32,18.52589632]
[1760363245441,11.56891473,194.43,194.32,18.01152736]
[1760363245442,9.82918116,194.43,194.32,18.01152736]
[1760363245655,20.35026643,194.42,194.32,12.86537669]
[1760363245950,0.17891473,194.45,194.41,8.96026643]
[1760363246161,0.69,194.44,194.41,8.96026643]
[1760363246455,0.17891473,194.46,194.43,8.96026643]
[1760363246826,0.17891473,194.49,194.44,8.96026643]
[1760363247030,8.96026643,194.46,194.4,8.96026643]
[1760363247263,8.96026643,194.42,194.35,8.96026643]
[1760363247441,8.96026643,194.4,194.34,8.96026643]
[1760363247752,10.87891473,194.39,194.35,5.14535631]
[1760363248055,9.65026643,194.38,194.32,8.96026643]
[1760363248259,0.17891473,194.38,194.32,0.51461506]
[1760363248549,10.7,194.39,194.36,8.96026643]
[1760363248755,10.7,194.44,194.35,20.8]
[1760363248923,0.17891473,194.43,194.36,0.51448267]
[1760363249129,8.96026643,194.39,194.33,8.96026643]
[1760363249347,9.13918116,194.38,194.31,8.96026643]
[1760363249547,8.96026643,194.35,194.24,12.87017263]
[1760363249740,8.96026643,194.31,194.25,8.96026643]
[1760363249939,8.96026643,194.28,194.18,5.14986095]
[1760363250142,9.13918116,194.27,194.16,0.29]
[1760363250361,9.82918116,194.27,194.2,8.96026643]
[1760363250652,8.96026643,194.25,194.14,18.02822704]
[1760363250867,10.87891473,194.24,194.21,8.96026643]
[1760363251161,0.69,194.23,194.19,8.96026643]
[1760363251454,10.87891473,194.24,194.21,8.96026643]
[1760363251658,0.17891473,194.26,194.22,8.96026643]
[1760363251826,10.7,194.31,194.25,8.96026643]
[1760363252028,0.17891473,194.33,194.3,8.96026643]
[1760363252230,10.7,194.33,194.3,8.96026643]
[1760363252427,0.17891473,194.32,194.31,8.96026643]
[1760363252654,10.7,194.33,194.31,8.96026643]
[1760363252825,0.17891473,194.36,194.26,21.31477401]
[1760363253033,20.35026643,194.35,194.25,20.8]
[1760363253228,0.17891473,194.34,194.29,8.96026643]
[1760363253460,0.17891473,194.34,194.3,8.96026643]
[1760363253959,0.17891473,194.34,194.31,8.96026643]
[1760363254160,10.7,194.36,194.33,8.96026643]
[1760363254364,0.17891473,194.39,194.35,8.96026643]
[1760363254669,0.69,194.43,194.38,8.96026643]
[1760363254670,10.7,194.4,194.38,8.96026643]
[1760363254842,0.17891473,194.39,194.36,8.96026643]
[1760363255043,8.96026643,194.37,194.3,5.14653262]
[1760363255254,10.87891473,194.36,194.32,8.96026643]
[1760363255562,10.87891473,194.36,194.35,8.96026643]
[1760363255752,0.17891473,194.4,194.35,14.10562274]
[1760363256070,16.0221821,194.43,194.35,18.00874709]
[1760363256268,0.69,194.42,194.37,8.96026643]
[1760363256570,0.17891473,194.41,194.35,18.00874709]
[1760363256771,50.0,194.44,194.35,39.32307106]
[1760363257067,50.0,194.44,194.36,11.16647521]
[1760363257244,50.0,194.44,194.42,8.96026643]
[1760363257445,50.0,194.44,194.41,8.96026643]
[1760363257746,50.0,194.44,194.43,14.10350564]
[1760363257941,50.0,194.44,194.43,8.96026643]
[1760363258377,50.0,194.44,194.41,18.00295018]
[1760363258688,50.0,194.44,194.42,8.96026643]
[1760363258841,50.0,194.44,194.41,14.1037958]
[1760363259045,0.17891473,194.43,194.41,5.14352937]
[1760363259371,0.79674792,194.42,194.34,12.86402804]
[1760363259664,8.96026643,194.38,194.31,8.96026643]
[1760363259841,8.96026643,194.36,194.29,8.96026643]
[1760363260042,9.13918116,194.35,194.29,8.96026643]
[1760363260277,8.96026643,194.33,194.27,8.96026643]
[1760363260567,10.87891473,194.32,194.27,8.96026643]
[1760363260765,8.96026643,194.3,194.24,5.14827018]
[1760363260973,0.17891473,194.29,194.24,14.10853661]
[1760363261153,9.65026643,194.28,194.13,0.29]
[1760363261351,10.87891473,194.27,194.22,8.96026643]
[1760363261558,10.7,194.26,194.22,8.96026643]
[1760363261745,0.17891473,194.25,194.21,8.96026643]
[1760363261948,0.17891473,194.27,194.23,8.96026643]
[1760363262156,11.39,194.26,194.22,8.96026643]
[1760363262355,0.86891473,194.25,194.18,18.02451333]
[1760363262680,0.86891473,194.25,194.2,8.96026643]
[1760363262851,0.86891473,194.25,194.11,0.51498608]
[1760363262852,8.96026643,194.22,194.12,5.1514527]
[1760363263050,11.55891473,194.21,194.15,8.96026643]
[1760363263464,0.85891473,194.21,194.16,8.96026643]
[1760363263661,0.17891473,194.23,194.19,8.96026643]
[1760363263973,0.17891473,194.33,194.22,8.96026643]
[1760363264183,8.96026643,194.3,194.21,18.02172905]
[1760363264363,0.17891473,194.29,194.25,8.96026643]
[1760363264565,0.17891473,194.29,194.21,18.02172905]
[1760363264566,0.17891473,194.29,194.26,8.96026643]
[1760363264869,8.96026643,194.27,194.14,0.5150922]
[1760363265071,9.13918116,194.26,194.2,8.96026643]
[1760363265277,20.34026643,194.25,194.18,8.96026643]
[1760363265497,0.17891473,194.24,194.21,8.96026643]
[1760363265651,10.87891473,194.26,194.23,8.96026643]
[1760363265844,0.17891473,194.25,194.23,5.14844067]
[1760363266077,8.96026643,194.29,194.23,5.14844067]
[1760363266078,10.7,194.26,194.24,8.96026643]
[1760363266256,0.17891473,194.28,194.25,8.96026643]
[1760363266449,0.17891473,194.31,194.27,8.96026643]
[1760363266672,10.87891473,194.31,194.27,8.96026643]
[1760363266850,0.86891473,194.35,194.3,8.96026643]
[1760363267182,0.17891473,194.37,194.33,8.96026643]
[1760363267378,10.7,194.38,194.33,8.96026643]
[1760363267580,10.87891473,194.38,194.35,8.96026643]
[1760363267748,10.7,194.38,194.36,8.96026643]
[1760363267950,10.7,194.38,194.37,14.1050933]
[1760363268154,0.10674792,194.42,194.37,14.1050933]
[1760363268364,0.10674792,194.42,194.37,5.14482687]
[1760363268567,0.69,194.41,194.37,14.1050933]
[1760363268771,0.69,194.4,194.37,5.14482687]
[1760363268948,0.69,194.4,194.35,8.96026643]
[1760363268949,10.85891473,194.39,194.3,0.29]
[1760363269148,10.85891473,194.39,194.36,8.96026643]
[1760363269363,0.10674792,194.42,194.38,8.96026643]
[1760363269581,0.10674792,194.42,194.41,8.96026643]
[1760363269794,0.10674792,194.42,194.41,14.61841157]
[1760363270368,0.09280796,194.43,194.41,25.78488678]
[1760363270594,5.21563242,194.44,194.43,40.63674164]
[1760363270769,1e-08,194.46,194.44,10.87647521]
[1760363270976,1e-08,194.5,194.48,10.87647521]
[1760363271171,1e-08,194.5,194.49,20.35090689]
[1760363271395,1e-08,194.51,194.5,10.87647521]
[1760363271578,1e-08,194.51,194.5,19.83674164]
[1760363271773,1e-08,194.51,194.5,24.97812981]
[1760363273100,1e-08,194.51,194.5,45.77812981]
[1760363273400,1e-08,194.51,194.5,24.97812981]
[1760363273786,1e-08,194.56,194.55,24.97680846]
[1760363274099,1e-08,194.56,194.55,25.49081514]
[1760363274802,0.69,194.72,194.67,8.96026643]
[1760363274979,51.20256637,194.84,194.69,8.96026643]
[1760363274980,0.86891473,194.71,194.69,8.96026643]
[1760363275296,0.17891473,194.75,194.7,8.96026643]
[1760363275496,0.17891473,194.75,194.62,21.3138218]
[1760363275497,0.17891473,194.75,194.72,8.96026643]
[1760363275698,0.86891473,194.76,194.73,8.96026643]
[1760363275996,0.69,194.75,194.73,14.09551017]
[1760363276171,0.17891473,194.76,194.71,5.1356342]
[1760363276375,0.69,194.75,194.72,8.96026643]
[1760363276571,0.86891473,194.74,194.63,0.51368982]
[1760363276800,9.82918116,194.74,194.68,8.96026643]
[1760363277001,9.82918116,194.74,194.64,5.13769009]
[1760363277002,9.65026643,194.73,194.64,5.13769009]
[1760363277307,0.17891473,194.75,194.72,8.96026643]
[1760363277601,0.17891473,194.76,194.74,8.96026643]
[1760363277773,0.86891473,194.76,194.74,8.96026643]
[1760363277978,0.69,194.75,194.71,5.13562344]
[1760363278187,20.97891473,194.78,194.74,8.96026643]
[1760363278393,20.97891473,194.78,194.71,5.13562344]
[1760363278394,0.69,194.77,194.75,8.96026643]
[1760363278597,0.86891473,194.76,194.73,8.96026643]
[1760363278800,0.17891473,194.76,194.74,8.96026643]
[1760363278988,0.69,194.75,194.73,8.96026643]
[1760363279302,0.10764674,194.75,194.74,8.96026643]
[1760363279510,0.10112702,194.77,194.76,20.8]
[1760363279681,1e-08,194.79,194.78,10.87647521]
[1760363279882,1e-08,194.8,194.79,16.01020897]
[1760363280200,1e-08,194.8,194.79,5.13373376]
[1760363280383,1e-08,194.8,194.79,24.9704754]
[1760363280585,0.09769139,194.84,194.82,20.8]
[1760363280804,0.17891473,194.95,194.83,41.14987169]
[1760363281123,0.69,194.94,194.86,20.8]
[1760363281278,0.17891473,194.93,194.83,11.38974318]
[1760363281480,0.69,194.92,194.84,20.8]
[1760363281689,0.17891473,194.97,194.86,10.87647521]
[1760363281900,0.69,194.97,194.92,8.96026643]
[1760363282103,0.69,194.97,194.86,10.87647521]
[1760363282104,0.86891473,194.96,194.86,10.87647521]
[1760363282308,0.69,194.95,194.79,0.51316261]
[1760363282516,29.76026643,194.9,194.77,10.87647521]
[1760363282679,11.05538994,194.94,194.77,10.87647521]
[1760363282680,8.96026643,194.84,194.77,8.96026643]
[1760363283004,0.17891473,194.83,194.8,8.96026643]
[1760363283307,0.69,194.82,194.78,8.96026643]
[1760363283510,0.17891473,194.85,194.81,8.96026643]
[1760363283678,0.86891473,194.84,194.71,0.51316117]
[1760363283883,14.09347314,194.81,194.74,8.96026643]
[1760363284083,20.8,194.78,194.62,10.87647521]
[1760363284348,11.52891473,194.77,194.66,8.96026643]
[1760363284621,0.17891473,194.77,194.75,8.96026643]
[1760363284821,0.17891473,194.77,194.67,0.51368982]
[1760363284822,10.66,194.79,194.73,8.96026643]
[1760363285006,8.96026643,194.74,194.61,17.98468732]
[1760363285317,8.96026643,194.71,194.6,5.13859848]
[1760363285520,8.96026643,194.66,194.59,0.51390102]
[1760363285729,0.17891473,194.68,194.62,8.96026643]
[1760363285905,9.65026643,194.67,194.6,8.96026643]
[1760363286230,0.17891473,194.67,194.65,8.96026643]
[1760363286398,2.0,199.92,194.59,20.8]
[1760363286399,10.64,194.71,194.66,8.96026643]
[1760363286603,0.17891473,194.7,194.69,8.96026643]
[1760363286818,0.69,194.7,194.67,8.96026643]
[1760363287016,0.69,194.7,194.68,8.96026643]
[1760363287214,12.83395192,194.8,194.69,8.96026643]
[1760363287421,11.50891473,194.79,194.72,8.96026643]
[1760363287610,11.50891473,194.79,194.73,8.96026643]
[1760363287827,9.65026643,194.78,194.6,0.51358739]
[1760363288132,20.8,194.72,194.59,21.31379132]
[1760363288297,20.46918116,194.71,194.59,5.65275979]
[1760363288503,8.96026643,194.69,194.62,8.96026643]
[1760363288703,0.86891473,194.68,194.62,8.96026643]
[1760363288929,0.17891473,194.68,194.64,8.96026643]
[1760363289129,20.8,194.7,194.67,8.96026643]
[1760363289304,0.69,194.69,194.66,8.96026643]
[1760363289627,0.17891473,194.68,194.61,10.87647521]
[1760363289831,0.17891473,194.68,194.51,43.6995527]
[1760363289832,0.17891473,194.76,194.67,8.96026643]
[1760363290007,0.86891473,194.78,194.75,8.96026643]
[1760363290210,0.69,194.78,194.75,8.96026643]
[1760363290403,0.69,194.78,194.74,8.96026643]
[1760363290606,0.69,194.78,194.76,8.96026643]
[1760363290914,0.17891473,194.84,194.77,9.47369252]
[1760363291112,0.69,194.83,194.73,31.67647521]
[1760363291313,29.76026643,194.81,194.69,0.51330979]
[1760363291512,20.46918116,194.8,194.73,8.96026643]
[1760363291856,10.64,194.83,194.79,8.96026643]
[1760363292127,0.69,194.86,194.82,8.96026643]
[1760363292328,11.50891473,194.85,194.79,8.96026643]
[1760363292706,0.17891473,194.86,194.76,0.51312529]
[1760363292907,0.87891473,194.86,194.81,8.96026643]
[1760363293107,0.7,194.85,194.8,8.96026643]
[1760363293317,0.7,194.85,194.75,17.97154183]
[1760363293318,0.87891473,194.84,194.75,17.97154183]
[1760363293634,11.34,194.83,194.77,8.96026643]
[1760363293824,0.17891473,194.82,194.78,8.96026643]
[1760363294138,10.81891473,194.83,194.8,8.96026643]
[1760363294302,0.17891473,194.85,194.82,8.96026643]
[1760363294507,0.87891473,194.85,194.82,8.96026643]
[1760363294708,0.7,194.84,194.78,5.1338614]
[1760363294914,9.83918116,194.83,194.74,5.13505186]
[1760363295208,8.96026643,194.81,194.75,8.96026643]
[1760363295418,0.17891473,194.8,194.75,8.96026643]
[1760363295723,0.7,194.79,194.75,8.96026643]
[1760363295924,14.97318272,194.78,194.7,5.13610683]
[1760363296116,8.96026643,194.76,194.6,28.86208671]
[1760363296335,8.96026643,194.72,194.65,8.96026643]
[1760363296627,10.81891473,194.71,194.66,8.96026643]
[1760363296809,11.51891473,194.71,194.66,8.96026643]
[1760363297008,0.7,194.7,194.65,8.96026643]
[1760363297232,9.83918116,194.69,194.62,8.96026643]
[1760363297548,8.96026643,194.66,194.61,0.5137954]
[1760363297710,20.8,194.59,194.48,0.51419169]
[1760363298033,8.96026643,194.56,194.5,5.14138817]
[1760363298236,0.17891473,194.55,194.53,8.96026643]
[1760363298410,10.64,194.58,194.54,8.96026643]
[1760363298610,0.17891473,194.6,194.57,8.96026643]
[1760363298820,10.64,194.62,194.51,10.87647521]